[Event "Austria 2nd BL-Mitte 2024-25"]
[Site "Austria"]
[Date "2025.04.05"]
[Round "10.1"]
[White "Smith, Bryan"]
[Black "Postlmayer, Jakob"]
[Result "0-1"]
[Annotator "RC"]
[ECO "B67"]
[WhiteElo "2374"]
[BlackElo "2403"]
[PlyCount "66"]
[EventDate "2025.03.30"]
[EventType "team-tourn"]
[EventCountry "AUT"]
[SourceTitle "playchess.com"]
[Source "ChessBase"]
[SourceQuality "1"]
[TimeControl "40/5400+30:1800+30"]

1. e4 {[%emt 0:00:03]} c5 {[%emt 0:00:04]} 2. Nf3 {[%emt 0:00:07]} d6 {[%emt 0:00:06]} 3. d4 {[%emt 0:00:24]} cxd4 {[%emt 0:00:11]} 4. Nxd4 {[%emt 0:00:04]} Nf6 {[%emt 0:00:08]} 5. Nc3 {[%emt 0:00:10]} Nc6 {[%emt 0:00:06]} 6. Bg5 {[%emt 0:01:15]} e6 {[%emt 0:00:09]} 7. Qd2 {[%emt 0:00:23]} a6 {[%emt 0:00:07]} 8. O-O-O {[%emt 0:00:06]} Bd7 {[%emt 0:00:04]} 9. Kb1 {[%emt 0:00:16]} Nxd4 {[%emt 0:00:16]} 10. Qxd4 {[%emt 0:00:06]} Be7 {[%emt 0:00:07]} 11. f4 {[%emt 0:01:16]} Bc6 {[%emt 0:00:41]} 12. f5 {[%emt 0:08:56]} Qa5 {[%emt 0:00:55]} 13. Bc4 {[%emt 0:01:48]} exf5 {[%emt 0:00:29]} 14. Rhf1 {[%emt 0:05:59]} fxe4 {[%emt 0:01:11]} 15. Nxe4 {[%emt 0:27:12]} Nxe4 {[%emt 0:02:08]} 16. Bxe7 {[%emt 0:13:40]} Kxe7 {[%emt 0:06:05]} 17. Rxf7+ {[%emt 0:03:49]} Ke8 {[%emt 0:03:01]} 18. Qxg7 {[%emt 0:08:34]} Qe5 {[%emt 0:00:30]} 19. Qh6 {[%emt 0:05:12]} d5 {[%emt 0:18:46]} 20. Rdf1 {[%emt 0:02:18]} Kd8 {[%emt 0:05:59]} 21. Bd3 {[%emt 0:07:16]} Qg5 {[%emt 0:07:17]} 22. Qxg5+ {[%emt 0:06:55]} Nxg5 {[%emt 0:00:22]} 23. Rg7 {[%emt 0:00:05]} h6 {[%emt 0:01:52]} 24. Rf6 {[%emt 0:00:42]} Ne4 {[%emt 0:01:51]} 25. Re6 {[%emt 0:01:03]} Kc8 {[%emt 0:00:43]} 26. Ree7 {[%emt 0:01:01]} Kb8 {[%emt 0:00:59]} 27. Rg6 {[%emt 0:01:03]} h5 {[%emt 0:03:04]} 28. b3 {[%emt 0:00:42]} a5 {[%emt 0:00:37]} 29. c4 {[%emt 0:00:44]} Nc5 {[%emt 0:03:44]} 30. cxd5 {[%emt 0:00:21]} Be8 {[%emt 0:00:53]} 31. Rgg7 {[%emt 0:03:18]} Nxd3 {[%emt 0:00:26]} 32. Rxb7+ {[%emt 0:00:04]} Kc8 {[%emt 0:00:06]} 33. d6 {[%emt 0:00:21]} Ne5 {[%emt 0:00:38]} 0-1

[Event "Austria 2nd BL-Mitte 2024-25"]
[Site "Austria"]
[Date "2025.04.05"]
[Round "10.2"]
[White "Sandhoefner, Florian"]
[Black "Bratovic, Blaz"]
[Result "1-0"]
[Annotator "ChessBase"]
[ECO "B73"]
[WhiteElo "2214"]
[BlackElo "2332"]
[PlyCount "121"]
[EventDate "2025.03.30"]
[EventType "team-tourn"]
[EventCountry "AUT"]
[SourceTitle "playchess.com"]
[Source "ChessBase"]
[SourceQuality "1"]
[TimeControl "40/5400+30:1800+30"]

1. e4 {[%emt 0:00:03]} c5 {[%emt 0:00:19]} 2. Nf3 {[%emt 0:00:04]} d6 {[%emt 0:00:04]} 3. d4 {[%emt 0:00:05]} cxd4 {[%emt 0:00:04]} 4. Nxd4 {[%emt 0:00:01]} Nf6 {[%emt 0:00:20]} 5. Nc3 {[%emt 0:00:04]} Nc6 {[%emt 0:00:06]} 6. Be2 {[%emt 0:00:05]} g6 {[%emt 0:02:15]} 7. Be3 {[%emt 0:00:06]} Bg7 {[%emt 0:00:03]} 8. O-O {[%emt 0:00:07]} O-O {[%emt 0:00:04]} 9. Qd2 {[%emt 0:00:05]} Bd7 {[%emt 0:00:29]} 10. f4 {[%emt 0:00:07]} Nxd4 {[%emt 0:01:08]} 11. Bxd4 {[%emt 0:00:03]} Bc6 {[%emt 0:00:10]} 12. f5 {[%emt 0:00:12]} b5 {[%emt 1:31:28]} 13. Bf3 {[%emt 0:04:46]} b4 {[%emt 0:00:00]} 14. Nd5 {[%emt 0:01:57]} Bxd5 {[%emt 0:00:00]} 15. exd5 {[%emt 0:00:12]} a5 {[%emt 0:00:00]} 16. fxg6 {[%emt 0:01:09]} hxg6 {[%emt 0:00:00]} 17. a3 {[%emt 0:00:39]} bxa3 {[%emt 0:00:00]} 18. Rxa3 {[%emt 0:02:04]} Nd7 {[%emt 0:00:00]} 19. Rfa1 {[%emt 0:03:09]} Bxd4+ {[%emt 0:00:00]} 20. Qxd4 {[%emt 0:01:40]} Qc7 {[%emt 0:00:00]} 21. b4 {[%emt 0:06:33]} a4 {[%emt 0:00:00]} 22. c3 {[%emt 0:07:27]} Qb6 {[%emt 0:00:00]} 23. Rxa4 {[%emt 0:03:33]} Rxa4 {[%emt 0:00:00]} 24. Rxa4 {[%emt 0:00:03]} Rc8 {[%emt 0:00:00]} 25. Qxb6 {[%emt 0:01:14]} Nxb6 {[%emt 0:00:00]} 26. Ra6 {[%emt 0:00:11]} Nd7 {[%emt 0:00:00]} 27. Rc6 {[%emt 0:00:40]} Rd8 {[%emt 0:00:00]} 28. Kf2 {[%emt 0:01:34]} f5 {[%emt 0:00:00]} 29. Ke3 {[%emt 0:01:56]} Kg7 {[%emt 0:08:30]} 30. Be2 {[%emt 0:03:21]} Kf6 {[%emt 0:00:00]} 31. Ba6 {[%emt 0:03:05]} Rh8 {[%emt 0:00:00]} 32. h3 {[%emt 0:01:13]} Rh4 {[%emt 0:00:00]} 33. Rc7 {[%emt 0:11:36]} Ne5 {[%emt 0:00:00]} 34. Be2 {[%emt 0:01:18]} f4+ {[%emt 0:00:00]} 35. Kf2 {[%emt 0:01:50]} Rh8 {[%emt 0:00:00]} 36. b5 {[%emt 0:01:03]} Rb8 {[%emt 0:00:00]} 37. c4 {[%emt 0:00:32]} g5 {[%emt 0:00:00]} 38. Ke1 {[%emt 0:01:44]} e6 {[%emt 0:00:00]} 39. dxe6 {[%emt 0:00:36]} Kxe6 {[%emt 0:00:00]} 40. Kd2 {[%emt 0:00:44]} Kf5 {[%emt 0:00:00]} 41. Bd3+ {[%emt 0:32:02]} Kf6 {[%emt 0:12:11]} 42. Be4 {[%emt 0:01:19]} g4 {[%emt 0:01:55]} 43. hxg4 {[%emt 0:09:23]} Nxg4 {[%emt 0:00:33]} 44. Bf3 {[%emt 0:00:58]} Ne5 {[%emt 0:06:17]} 45. Bd5 {[%emt 0:00:31]} Kf5 {[%emt 0:04:25]} 46. Kc3 {[%emt 0:00:53]} Ng4 {[%emt 0:02:56]} 47. Kb4 {[%emt 0:02:16]} Ne3 {[%emt 0:00:53]} 48. Bf3 {[%emt 0:02:00]} Ke5 {[%emt 0:00:39]} 49. c5 {[%emt 0:04:40]} Nc2+ {[%emt 0:03:39]} 50. Ka5 {[%emt 0:06:37]} Nd4 {[%emt 0:00:29]} 51. b6 {[%emt 0:01:51]} Nxf3 {[%emt 0:06:02]} 52. gxf3 {[%emt 0:00:49]} dxc5 {[%emt 0:00:04]} 53. Rxc5+ {[%emt 0:01:00]} Kd4 {[%emt 0:00:04]} 54. Kb5 {[%emt 0:01:13]} Ke3 {[%emt 0:00:00]} 55. Rc3+ {[%emt 0:00:00]} Kf2 {[%emt 0:00:00]} 56. Rb3 {[%emt 0:00:00]} Kg2 {[%emt 0:00:00]} 57. Kc6 {[%emt 0:00:00]} Rc8+ {[%emt 0:00:00]} 58. Kd7 {[%emt 0:00:00]} Rb8 {[%emt 0:00:00]} 59. Kc7 {[%emt 0:00:00]} Rh8 {[%emt 0:00:00]} 60. b7 {[%emt 0:00:00]} Rh7+ {[%emt 0:00:00]} 61. Kb6 {[%emt 0:00:00]} 1-0

[Event "Austria 2nd BL-Mitte 2024-25"]
[Site "Austria"]
[Date "2025.04.05"]
[Round "10.3"]
[White "Feinig, Mario"]
[Black "Hajnal, Zoltan"]
[Result "0-1"]
[Annotator "ChessBase"]
[ECO "C47"]
[WhiteElo "2214"]
[BlackElo "2325"]
[PlyCount "66"]
[EventDate "2025.03.30"]
[EventType "team-tourn"]
[EventCountry "AUT"]
[SourceTitle "playchess.com"]
[Source "ChessBase"]
[SourceQuality "1"]
[TimeControl "40/5400+30:1800+30"]

1. e4 {[%emt 0:00:03]} e5 {[%emt 0:00:06]} 2. Nf3 {[%emt 0:00:08]} Nc6 {[%emt 0:00:06]} 3. Nc3 {[%emt 0:00:05]} Nf6 {[%emt 0:00:06]} 4. d4 {[%emt 0:00:05]} exd4 {[%emt 0:00:17]} 5. Nxd4 {[%emt 0:00:07]} Bc5 {[%emt 0:00:31]} 6. Be3 {[%emt 0:00:25]} Bb6 {[%emt 0:00:05]} 7. Qd2 {[%emt 0:00:30]} Ng4 {[%emt 0:00:37]} 8. Nxc6 {[%emt 0:01:16]} bxc6 {[%emt 0:00:23]} 9. Bd4 {[%emt 0:01:56]} d6 {[%emt 0:00:23]} 10. f3 {[%emt 0:02:37]} Nf6 {[%emt 0:01:52]} 11. O-O-O {[%emt 0:06:37]} O-O {[%emt 0:00:56]} 12. g4 {[%emt 0:04:20]} Re8 {[%emt 0:02:50]} 13. h4 {[%emt 0:03:02]} Nd7 {[%emt 0:01:42]} 14. g5 {[%emt 0:08:03]} Bb7 {[%emt 0:03:11]} 15. Bxb6 {[%emt 0:50:18]} axb6 {[%emt 0:10:16]} 16. h5 {[%emt 0:00:01]} b5 {[%emt 0:02:53]} 17. a3 {[%emt 0:02:16]} Nc5 {[%emt 0:09:10]} 18. h6 {[%emt 0:01:33]} g6 {[%emt 0:05:42]} 19. f4 {[%emt 0:03:12]} Qe7 {[%emt 0:11:05]} 20. Bh3 {[%emt 0:05:57]} Bc8 {[%emt 0:11:28]} 21. Qd4 {[%emt 0:00:16]} Qf8 {[%emt 0:09:42]} 22. f5 {[%emt 0:00:55]} Re5 {[%emt 0:00:29]} 23. Rdf1 {[%emt 0:03:27]} Qe7 {[%emt 0:01:54]} 24. Rhg1 {[%emt 0:01:39]} Bd7 {[%emt 0:03:08]} 25. Rf4 {[%emt 0:00:51]} Rd8 {[%emt 0:15:28]} 26. Kb1 {[%emt 0:01:48]} Be8 {[%emt 0:01:22]} 27. fxg6 {[%emt 0:01:47]} hxg6 {[%emt 0:01:40]} 28. Rf6 {[%emt 0:00:41]} Nxe4 {[%emt 0:02:46]} 29. Nxe4 {[%emt 0:00:02]} Rxe4 {[%emt 0:00:06]} 30. Qf2 {[%emt 0:00:56]} Kh7 {[%emt 0:03:38]} 31. Rf1 {[%emt 0:00:31]} Re5 {[%emt 0:00:19]} 32. Qf4 {[%emt 0:00:28]} d5 {[%emt 0:00:54]} 33. Ka2 {[%emt 0:00:36]} Rd6 {[%emt 0:00:20]} 0-1

[Event "Austria 2nd BL-Mitte 2024-25"]
[Site "Austria"]
[Date "2025.04.05"]
[Round "10.4"]
[White "Heimberger, Reinhard"]
[Black "Riemelmoser, Franz"]
[Result "0-1"]
[Annotator "ChessBase"]
[ECO "D02"]
[WhiteElo "2273"]
[BlackElo "2234"]
[PlyCount "122"]
[EventDate "2025.03.30"]
[EventType "team-tourn"]
[EventCountry "AUT"]
[SourceTitle "playchess.com"]
[Source "ChessBase"]
[SourceQuality "1"]
[TimeControl "40/5400+30:1800+30"]

1. d4 {[%emt 0:00:03]} e6 {[%emt 0:00:17]} 2. g3 {[%emt 0:00:03]} c5 {[%emt 0:00:23]} 3. e3 {[%emt 0:03:34]} Nf6 {[%emt 0:00:48]} 4. Bg2 {[%emt 0:00:04]} Nc6 {[%emt 0:00:36]} 5. Nf3 {[%emt 0:02:35]} d5 {[%emt 0:00:25]} 6. O-O {[%emt 0:00:07]} Be7 {[%emt 0:03:19]} 7. dxc5 {[%emt 0:08:13]} Bxc5 {[%emt 0:00:14]} 8. a3 {[%emt 0:00:01]} O-O {[%emt 0:03:24]} 9. b4 {[%emt 0:00:21]} Be7 {[%emt 0:00:19]} 10. Bb2 {[%emt 0:00:04]} b5 {[%emt 0:00:28]} 11. Qe2 {[%emt 0:07:46]} Qb6 {[%emt 0:02:45]} 12. Nd4 {[%emt 0:03:49]} Rb8 {[%emt 0:10:09]} 13. Nd2 {[%emt 0:12:34]} a5 {[%emt 0:03:21]} 14. Nxc6 {[%emt 0:10:32]} Qxc6 {[%emt 0:00:10]} 15. bxa5 {[%emt 0:00:03]} Ba6 {[%emt 0:07:44]} 16. Rfc1 {[%emt 0:01:17]} Rfc8 {[%emt 0:00:34]} 17. Nb3 {[%emt 0:11:49]} Qc4 {[%emt 0:02:26]} 18. Bf1 {[%emt 0:00:54]} Qa4 {[%emt 0:02:10]} 19. Qd2 {[%emt 0:07:08]} Ne4 {[%emt 0:00:40]} 20. Qd4 {[%emt 0:04:59]} Bf6 {[%emt 0:03:53]} 21. Qxa4 {[%emt 0:00:06]} bxa4 {[%emt 0:00:12]} 22. Bxf6 {[%emt 0:00:02]} Bxf1 {[%emt 0:00:38]} 23. Nd4 {[%emt 0:00:41]} Bh3 {[%emt 0:03:50]} 24. Be7 {[%emt 0:00:35]} e5 {[%emt 0:03:17]} 25. Nf3 {[%emt 0:04:03]} Nc3 {[%emt 0:01:42]} 26. Re1 {[%emt 0:01:14]} f6 {[%emt 0:03:28]} 27. Bb4 {[%emt 0:03:55]} Kf7 {[%emt 0:01:15]} 28. Nd2 {[%emt 0:00:39]} Bf5 {[%emt 0:03:14]} 29. e4 {[%emt 0:06:09]} Nxe4 {[%emt 0:02:16]} 30. Nxe4 {[%emt 0:00:05]} Bxe4 {[%emt 0:00:08]} 31. c3 {[%emt 0:00:04]} g5 {[%emt 0:00:30]} 32. Rac1 {[%emt 0:02:41]} Rc4 {[%emt 0:00:25]} 33. Re3 {[%emt 0:04:41]} g4 {[%emt 0:00:22]} 34. Rd1 {[%emt 0:00:35]} Ke6 {[%emt 0:00:43]} 35. Kf1 {[%emt 0:00:33]} Rbc8 {[%emt 0:01:35]} 36. Ree1 {[%emt 0:04:13]} h5 {[%emt 0:00:30]} 37. Rd2 {[%emt 0:00:03]} Bf3 {[%emt 0:01:11]} 38. Rb1 {[%emt 0:00:37]} d4 {[%emt 0:00:45]} 39. Rc1 {[%emt 0:01:24]} e4 {[%emt 0:01:01]} 40. Re1 {[%emt 0:00:24]} dxc3 {[%emt 0:01:12]} 41. Rc2 {[%emt 0:30:19]} Kd5 {[%emt 0:30:14]} 42. Re3 {[%emt 0:01:37]} Kd4 {[%emt 0:00:31]} 43. Be7 {[%emt 0:00:00]} R8c6 {[%emt 0:00:00]} 44. Re1 {[%emt 0:00:00]} Kd3 {[%emt 0:00:00]} 45. Rec1 {[%emt 0:00:00]} Bd1 {[%emt 0:00:00]} 46. Ra2 {[%emt 0:00:00]} c2 {[%emt 0:00:00]} 47. Bb4 {[%emt 0:00:00]} e3 {[%emt 0:00:00]} 48. fxe3 {[%emt 0:00:00]} Re6 {[%emt 0:00:00]} 49. Rb2 {[%emt 0:00:00]} Rxe3 {[%emt 0:00:00]} 50. a6 {[%emt 0:00:00]} Re6 {[%emt 0:00:00]} 51. a7 {[%emt 0:00:00]} Ra6 {[%emt 0:00:00]} 52. Bf8 {[%emt 0:00:00]} Rxa7 {[%emt 0:00:00]} 53. Bh6 {[%emt 0:00:00]} Re7 {[%emt 0:00:00]} 54. Rb6 {[%emt 0:00:00]} Rce4 {[%emt 0:00:00]} 55. Rd6+ {[%emt 0:00:00]} Kc3 {[%emt 0:00:00]} 56. Bd2+ {[%emt 0:00:00]} Kb3 {[%emt 0:00:00]} 57. Rb6+ {[%emt 0:00:00]} Kc4 {[%emt 0:00:00]} 58. Rxf6 {[%emt 0:00:00]} Re2 {[%emt 0:00:00]} 59. Rf4+ {[%emt 0:00:00]} Kd3 {[%emt 0:00:00]} 60. Bb4 {[%emt 0:00:00]} R7e3 {[%emt 0:00:00]} 61. Kg1 {[%emt 0:00:16]} Rf3 {[%emt 0:47:56]} 0-1

[Event "Austria 2nd BL-Mitte 2024-25"]
[Site "Austria"]
[Date "2025.04.05"]
[Round "10.6"]
[White "Theuretzbacher, Klaus"]
[Black "Roessler, Felix"]
[Result "1-0"]
[Annotator "ChessBase"]
[ECO "C24"]
[WhiteElo "2175"]
[BlackElo "1840"]
[PlyCount "131"]
[EventDate "2025.03.30"]
[EventType "team-tourn"]
[EventCountry "AUT"]
[SourceTitle "playchess.com"]
[Source "ChessBase"]
[SourceQuality "1"]
[TimeControl "40/5400+30:1800+30"]

1. e4 {[%emt 0:00:04]} e5 {[%emt 0:00:05]} 2. Bc4 {[%emt 0:00:06]} Nf6 {[%emt 0:00:15]} 3. d4 {[%emt 0:01:51]} Nxe4 {[%emt 0:28:24]} 4. dxe5 {[%emt 0:00:20]} d6 {[%emt 0:02:04]} 5. Bxf7+ {[%emt 0:10:19]} Kxf7 {[%emt 0:00:20]} 6. Qd5+ {[%emt 0:00:01]} Be6 {[%emt 0:00:58]} 7. Qxe4 {[%emt 0:00:01]} dxe5 {[%emt 0:02:04]} 8. Nf3 {[%emt 0:01:17]} Bd6 {[%emt 0:15:36]} 9. Ng5+ {[%emt 0:01:50]} Ke7 {[%emt 0:00:56]} 10. Nxe6 {[%emt 0:04:17]} Kxe6 {[%emt 0:00:18]} 11. Qxb7 {[%emt 0:00:38]} Nd7 {[%emt 0:01:42]} 12. Nc3 {[%emt 0:01:51]} Qh4 {[%emt 0:06:29]} 13. Qe4 {[%emt 0:07:03]} Qxe4+ {[%emt 0:01:24]} 14. Nxe4 {[%emt 0:00:14]} h6 {[%emt 0:00:52]} 15. O-O {[%emt 0:02:50]} Nc5 {[%emt 0:02:11]} 16. Re1 {[%emt 0:05:44]} Rab8 {[%emt 0:03:07]} 17. b3 {[%emt 0:02:16]} Rhf8 {[%emt 0:00:41]} 18. Bb2 {[%emt 0:03:32]} Rf5 {[%emt 0:07:06]} 19. Ng3 {[%emt 0:12:29]} Rf7 {[%emt 0:01:53]} 20. Re2 {[%emt 0:00:39]} Nd7 {[%emt 0:07:52]} 21. Ne4 {[%emt 0:02:24]} Rf5 {[%emt 0:02:55]} 22. Rd1 {[%emt 0:04:19]} Nf6 {[%emt 0:04:44]} 23. Ng3 {[%emt 0:18:58]} Rf4 {[%emt 0:00:39]} 24. Rde1 {[%emt 0:00:09]} Nd7 {[%emt 0:01:15]} 25. Ne4 {[%emt 0:03:13]} Rd8 {[%emt 0:03:51]} 26. g3 {[%emt 0:03:13]} Rf5 {[%emt 0:01:50]} 27. Kg2 {[%emt 0:00:25]} Kd5 {[%emt 0:01:50]} 28. Rd1+ {[%emt 0:03:48]} Kc6 {[%emt 0:00:07]} 29. Red2 {[%emt 0:02:19]} Nb6 {[%emt 0:00:43]} 30. c4 {[%emt 0:00:31]} Rd7 {[%emt 0:01:02]} 31. c5 {[%emt 0:01:45]} Bxc5 {[%emt 0:00:05]} 32. Rxd7 {[%emt 0:00:07]} Nxd7 {[%emt 0:00:08]} 33. Rxd7 {[%emt 0:00:12]} Kxd7 {[%emt 0:00:10]} 34. Nxc5+ {[%emt 0:00:03]} Kd6 {[%emt 0:00:47]} 35. Ne4+ {[%emt 0:01:14]} Kd5 {[%emt 0:00:36]} 36. f3 {[%emt 0:00:31]} Rf7 {[%emt 0:00:58]} 37. Kf2 {[%emt 0:01:07]} a6 {[%emt 0:01:02]} 38. Ke3 {[%emt 0:00:30]} c6 {[%emt 0:01:02]} 39. Nd2 {[%emt 0:01:44]} Re7 {[%emt 0:00:53]} 40. Kd3 {[%emt 0:03:21]} c5 {[%emt 0:01:00]} 41. Nc4 {[%emt 0:30:15]} g5 {[%emt 0:03:06]} 42. Bxe5 {[%emt 0:00:00]} Rf7 {[%emt 0:00:21]} 43. Ke3 {[%emt 0:00:00]} Rf5 {[%emt 0:00:34]} 44. Bc3 {[%emt 0:00:00]} Rf7 {[%emt 0:01:56]} 45. Nd2 {[%emt 0:00:00]} Re7+ {[%emt 0:00:27]} 46. Ne4 {[%emt 0:00:00]} c4 {[%emt 0:00:24]} 47. b4 {[%emt 0:00:00]} g4 {[%emt 0:01:26]} 48. Kf4 {[%emt 0:00:00]} gxf3 {[%emt 0:00:26]} 49. Nf6+ {[%emt 0:00:00]} Ke6 {[%emt 0:00:23]} 50. Kxf3 {[%emt 0:00:00]} Rf7 {[%emt 0:00:12]} 51. Ke4 {[%emt 0:00:00]} Rf8 {[%emt 0:00:31]} 52. a4 {[%emt 0:00:00]} Rf7 {[%emt 0:00:47]} 53. g4 {[%emt 0:00:00]} Rf8 {[%emt 0:02:54]} 54. h4 {[%emt 0:00:00]} Rd8 {[%emt 0:00:29]} 55. Nh5 {[%emt 0:00:00]} Kd6 {[%emt 0:05:32]} 56. Ng7 {[%emt 0:00:00]} Ke7 {[%emt 0:01:39]} 57. Nf5+ {[%emt 0:00:00]} Kf7 {[%emt 0:01:15]} 58. Nxh6+ {[%emt 0:00:00]} Kg6 {[%emt 0:00:27]} 59. Nf5 {[%emt 0:00:00]} Rd3 {[%emt 0:00:54]} 60. Bd4 {[%emt 0:00:00]} Rh3 {[%emt 0:02:59]} 61. h5+ {[%emt 0:00:00]} Kg5 {[%emt 0:00:13]} 62. Ne3 {[%emt 0:00:00]} Rh1 {[%emt 0:01:27]} 63. Kd5 {[%emt 0:00:00]} Rb1 {[%emt 0:02:17]} 64. Kxc4 {[%emt 0:00:00]} a5 {[%emt 0:00:14]} 65. bxa5 {[%emt 0:00:00]} Rb8 {[%emt 0:00:40]} 66. a6 {[%emt 0:00:03]} 1-0

[Event "Austria 2nd BL-Mitte 2024-25"]
[Site "Austria"]
[Date "2025.04.05"]
[Round "10.7"]
[White "Mihok, Oliver"]
[Black "Felsberger, Alfred"]
[Result "*"]
[Annotator "TA"]
[ECO "B48"]
[WhiteElo "2536"]
[BlackElo "2320"]
[PlyCount "43"]
[EventDate "2025.03.30"]
[EventType "team-tourn"]
[EventCountry "AUT"]
[SourceTitle "playchess.com"]
[Source "ChessBase"]
[SourceQuality "1"]
[TimeControl "40/5400+30:1800+30"]

{[%evp 11,43,33,44,12,20,4,20,11,13,-32,0,-27,3,0,6,16,16,11,46,40,46,29,82,87,74,70,75,74,87,20,31,44,112,112]} 1. e4 {[%emt 0:00:04]} c5 {[%emt 0:00:06]} 2. Nf3 {[%emt 0:00:05]} e6 {[%emt 0:00:25]} 3. d4 {[%emt 0:00:25]} cxd4 {[%emt 0:00:04]} 4. Nxd4 {[%emt 0:00:04]} Nc6 {[%emt 0:00:06]} 5. Nc3 {[%emt 0:00:18]} Qc7 {[%emt 0:00:05]} 6. Be3 {[%emt 0:00:37]} a6 {[%emt 0:00:04]} 7. g4 {[%emt 0:00:10] B48: Sicilian: Taimanov: 5 Nc3 Qc7 6 Be3 a6 without Be2.} h6 {[%emt 0:00:06] is recently more successful than 7...b5.} 8. h4 {[%emt 0:00:43]} b5 {[%emt 0:00:37]} 9. Nxc6 {[%emt 0:01:48] The position is equal.} Qxc6 {[%emt 0:00:24]} 10. Rg1 {[%emt 0:09:20]} Bb7 $146 {[%emt 0:04:36]} (10... Ba3 11. bxa3 Qxc3+ 12. Bd2 Qe5 13. g5 hxg5 14. Rxg5 Qxe4+ 15. Be3 d5 16. Rxg7 Ne7 {½-½ Nadj Hedjesi,B (2227)-Baradaran Tamadon,A (2202) Ayvalik Erik 2023 (7.5)}) 11. Qd2 {[%emt 0:05:00]} b4 {[%emt 0:11:27]} 12. Ne2 {[%emt 1:17:56]} Qd6 {[%emt 0:16:37]} 13. Qxd6 {[%emt 0:11:28]} Bxd6 {[%emt 0:00:04]} 14. f3 {[%emt 0:00:51]} Rc8 {[%emt 0:05:40]} 15. O-O-O {[%emt 0:01:03]} Bh2 {[%emt 0:01:33]} 16. Rg2 {[%emt 0:04:20]} Bb8 {[%emt 0:00:17] [#]} (16... Bc7 $11 {keeps the balance.}) 17. Nd4 $1 $16 {[%emt 1:02:39]} Ba7 {[%emt 0:03:32]} 18. Bf4 {[%emt 0:00:54][%cal Be3f4,Bf4d6,Bd6b4][%mdl 32]} Ne7 {[%emt 0:00:40]} 19. Bd6 {[%emt 0:02:21]} h5 {[%emt 0:07:04]} 20. gxh5 {[%emt 0:06:14] White is much more active.} ({Don't take} 20. Bxb4 hxg4 21. Rxg4 g6 $14) ({White should play} 20. Nb3 $16) 20... Rxh5 {[%emt 0:02:51]} 21. Rxg7 {[%emt 0:00:18]} Rxh4 {[%emt 0:05:52] Mistake:       	White=1     	Black=2      Inaccurate:     	White=2     	Black=2      OK:         	White=7     	Black=2      Best:        	White=1     	---        Strong:       	White=1     	---} ({Better is} 21... Bc5 $14 22. Bg3 d5) 22. Bxb4 {[%emt 0:02:58] Weighted Error Value: White=0.16 (very precise) /Black=0.21 (precise)} *

[Event "Austria 2nd BL-Mitte 2024-25"]
[Site "Austria"]
[Date "2025.04.05"]
[Round "10.8"]
[White "Weiss, Christian"]
[Black "Schreiner, Till"]
[Result "1/2-1/2"]
[Annotator "ChessBase"]
[ECO "B20"]
[WhiteElo "2360"]
[BlackElo "2354"]
[PlyCount "127"]
[EventDate "2025.03.30"]
[EventType "team-tourn"]
[EventCountry "AUT"]
[SourceTitle "playchess.com"]
[Source "ChessBase"]
[SourceQuality "1"]
[TimeControl "40/5400+30:1800+30"]

1. e4 {[%emt 0:00:04]} c5 {[%emt 0:00:29]} 2. g3 {[%emt 0:00:16]} Nc6 {[%emt 0:00:47]} 3. Bg2 {[%emt 0:00:06]} g6 {[%emt 0:00:51]} 4. f4 {[%emt 0:02:20]} Bg7 {[%emt 0:00:09]} 5. Nf3 {[%emt 0:01:15]} e6 {[%emt 0:05:12]} 6. O-O {[%emt 0:05:23]} Nge7 {[%emt 0:00:08]} 7. c3 {[%emt 0:02:28]} d5 {[%emt 0:13:10]} 8. d3 {[%emt 0:09:11]} O-O {[%emt 0:01:40]} 9. Be3 {[%emt 0:04:21]} b6 {[%emt 0:01:28]} 10. e5 {[%emt 0:02:04]} Ba6 {[%emt 0:06:41]} 11. Re1 {[%emt 0:05:17]} d4 {[%emt 0:11:12]} 12. cxd4 {[%emt 0:01:16]} cxd4 {[%emt 0:02:42]} 13. Bf2 {[%emt 0:12:02]} Rc8 {[%emt 0:09:38]} 14. Qd2 {[%emt 0:06:32]} Nd5 {[%emt 0:09:49]} 15. Nxd4 {[%emt 0:02:07]} Nxd4 {[%emt 0:01:09]} 16. Bxd4 {[%emt 0:00:06]} Ne7 {[%emt 0:03:59]} 17. Bf2 {[%emt 0:01:14]} Qxd3 {[%emt 0:00:41]} 18. Qxd3 {[%emt 0:00:06]} Bxd3 {[%emt 0:00:05]} 19. Nc3 {[%emt 0:00:04]} Rfd8 {[%emt 0:01:22]} 20. Rad1 {[%emt 0:00:27]} Ba6 {[%emt 0:06:34]} 21. Rxd8+ {[%emt 0:06:00]} Rxd8 {[%emt 0:00:04]} 22. Ne4 {[%emt 0:00:54]} Nd5 {[%emt 0:01:59]} 23. a3 {[%emt 0:04:01]} Rc8 {[%emt 0:06:01]} 24. Bd4 {[%emt 0:02:09]} Rc4 {[%emt 0:02:53]} 25. Rd1 {[%emt 0:00:26]} Bf8 {[%emt 0:01:09]} 26. Bf1 {[%emt 0:01:14]} Ra4 {[%emt 0:00:38]} 27. Bxa6 {[%emt 0:00:09]} Rxa6 {[%emt 0:00:03]} 28. Kf2 {[%emt 0:03:08]} Ra4 {[%emt 0:03:44]} 29. Kf3 {[%emt 0:01:48]} Be7 {[%emt 0:01:47]} 30. Nc3 {[%emt 0:06:58]} Ra5 {[%emt 0:01:15]} 31. Rc1 {[%emt 0:12:15]} Kf8 {[%emt 0:01:07]} 32. Ne4 {[%emt 0:03:44]} Ke8 {[%emt 0:00:43]} 33. Rc8+ {[%emt 0:04:09]} Kd7 {[%emt 0:00:52]} 34. Rh8 {[%emt 0:00:28]} Ra4 {[%emt 0:00:46]} 35. Bf2 {[%emt 0:00:18]} h5 {[%emt 0:00:26]} 36. Rh7 {[%emt 0:01:41]} Ke8 {[%emt 0:00:52]} 37. Nd6+ {[%emt 0:01:34]} Bxd6 {[%emt 0:00:06]} 38. exd6 {[%emt 0:01:55]} Rc4 {[%emt 0:03:01]} 39. d7+ {[%emt 0:00:00]} Kxd7 {[%emt 0:00:03]} 40. Rxf7+ {[%emt 0:00:00]} Ne7 {[%emt 0:00:41]} 41. Rh7 {[%emt 0:29:21]} e5 {[%emt 0:10:35]} 42. fxe5 {[%emt 0:00:00]} Ke6 {[%emt 0:00:10]} 43. Rg7 {[%emt 0:00:00]} Rc2 {[%emt 0:09:18]} 44. Bd4 {[%emt 0:00:00]} Rxh2 {[%emt 0:01:38]} 45. Bc3 {[%emt 0:00:00]} a5 {[%emt 0:05:51]} 46. a4 {[%emt 0:00:00]} Rc2 {[%emt 0:04:43]} 47. Bd4 {[%emt 0:00:00]} Rc4 {[%emt 0:02:19]} 48. Bxb6 {[%emt 0:00:00]} Rxa4 {[%emt 0:00:20]} 49. Bc5 {[%emt 0:00:00]} Nf5 {[%emt 0:00:33]} 50. Rxg6+ {[%emt 0:00:00]} Kxe5 {[%emt 0:00:09]} 51. Rg5 {[%emt 0:00:00]} Rc4 {[%emt 0:00:36]} 52. Bb6 {[%emt 0:02:42]} a4 {[%emt 0:02:18]} 53. Rxh5 {[%emt 0:00:09]} Ke6 {[%emt 0:00:14]} 54. g4 {[%emt 0:01:38]} Ng7 {[%emt 0:01:16]} 55. Rb5 {[%emt 0:00:45]} a3 {[%emt 0:00:36]} 56. bxa3 {[%emt 0:00:06]} Rc3+ {[%emt 0:00:04]} 57. Ke4 {[%emt 0:00:19]} Rxa3 {[%emt 0:00:12]} 58. Bd4 {[%emt 0:00:07]} Ne8 {[%emt 0:00:51]} 59. Re5+ {[%emt 0:00:28]} Kf7 {[%emt 0:00:06]} 60. Rc5 {[%emt 0:02:42]} Nf6+ {[%emt 0:00:30]} 61. Kf5 {[%emt 0:00:33]} Rf3+ {[%emt 0:00:14]} 62. Ke5 {[%emt 0:01:12]} Nd7+ {[%emt 0:00:04]} 63. Ke4 {[%emt 0:00:06]} Nxc5+ {[%emt 0:00:05]} 64. Kxf3 {[%emt 0:00:04]} 1/2-1/2